Cogmind - Beta 10.2 @@@ ROGUE MODE // 2021.04.21 @ 10:42:18 Player: ChromeKnight Result: Destroyed by G-73 Enforcer with Phase Gun Performance ------------- Evolutions (7) 3500 Regions Visited (15) 3000 Robots Destroyed (199) 995 Value Destroyed (8371) 8371 Prototype IDs (48) 960 Alien Tech Used (1) 200 Bonus (2069) 2069 TOTAL SCORE: 19095 Bonus ------- High Alert Combat Kills 1432 Follower Combat Kills 178 Aligned with FarCom 300 Met Zhirov 300 Friendly Fire -141 Cogmind --------- Core Integrity 0/1300 Matter 281/300 Energy 100/100 System Corruption 11% Temperature Cool (18) Movement Core (300) Ox5 Location -3/Research Parts ------- > --- POWER (1) -------- (None) > --- PROPULSION (3) --- (None) > --- UTILITY (13) ----- Large Storage Unit > --- WEAPON (4) ------- (None) > --- INVENTORY (10) --- Micro Fission Core Transdimensional Reconstructor Enhanced Force Lance Enhanced Force Lance Enhanced Force Lance Enhanced Force Lance Enhanced Force Lance Enhanced Force Lance Signal Generator Peak State ------------ > --- POWER ------------ Particle Reactor > --- PROPULSION ------- Flexi-carbon Leg Flexi-carbon Leg Advanced Myomer Leg > --- UTILITY ---------- Advanced Heat Sink Advanced Heat Sink Lightpack 2.0 Experimental Signal Interpreter Advanced Targeting Computer Advanced Targeting Computer Improved Target Analyzer Advanced Core Analyzer Weapon Cycler Improved Transmission Jammer Experimental Power Shielding Supersonic Drone Bay > --- WEAPON ----------- Antimatter Cannon Antimatter Cannon Antimatter Cannon Heavy Gauss Cannon > --- INVENTORY -------- Improved Deuterium Engine Light Fission Core Micro Fission Core Flexi-carbon Leg Flexi-carbon Leg Advanced Power Amplifier Advanced Heat Sink Large Storage Unit High-capacity Matter Pod Matter Compressor Matter Compressor Advanced Targeting Computer Advanced Targeting Computer Improved Melee Analysis Suite Improved Target Analyzer Improved Medium Armor Plating Transdimensional Reconstructor Precision Assault Rifle KE Penetrator KE Penetrator KE Penetrator KE Penetrator Signal Generator [Rating: 140] Favorites ----------- Power Antimatter Reactor Engine Improved Deuterium Engine Power Core Micro Fission Core Reactor Antimatter Reactor Propulsion Flexi-carbon Leg Leg Flexi-carbon Leg Wheel Armored Wheel Hover Unit Aerolev Unit Utility Lightpack 2.0 Device Advanced Heat Sink Storage Lightpack 2.0 Processor Advanced Targeting Computer Protection Improved Medium Armor Plating Weapon XL Autogun Array Energy Gun Medium Laser Energy Cannon Beam Cannon Ballistic Gun XL Autogun Array Ballistic Cannon Antimatter Cannon Launcher Rocket Launcher Slashing Weapon Plasma Sword Build | -11 -10 -10 -10 -9 -8 -8 -7 -6 -5 -5 -5 -5 -4 -4 -3 ------- Run | Scr Mat Min Exi Min Mat Sto Fac Fac Fac Upp Upp Zhi Pro Fac Res Slots Evolved 14 | . . . . . 4 . 2 2 2 . . . . 2 2 Power . | . . . . . . . . . . . . . . . . Propulsion 1 | . . . . . . . . . 1 . . . . . . Utility 11 | . . . . . 2 . 2 2 1 . . . . 2 2 Weapon 2 | . . . . . 2 . . . . . . . . . . Parts Attached 176 | 6 12 2 1 . 6 12 20 27 15 8 1 14 2 15 35 Power 23 | 1 3 1 . . 2 3 4 3 2 . . 2 . 1 1 Engine 9 | 1 3 1 . . . . 2 2 . . . . . . . Core 11 | . . . . . 2 3 2 1 1 . . 1 . 1 . Reactor 3 | . . . . . . . . . 1 . . 1 . . 1 Propulsion 41 | 2 3 . . . 1 5 5 7 1 . 1 3 1 5 7 Treads . | . . . . . . . . . . . . . . . . Leg 39 | 2 3 . . . 1 4 5 7 1 . 1 3 . 5 7 Wheel 1 | . . . . . . . . . . . . . 1 . . Hover 1 | . . . . . . 1 . . . . . . . . . Flight . | . . . . . . . . . . . . . . . . Utility 73 | 1 4 . 1 . 2 2 9 12 7 1 . 7 1 6 20 Device 39 | . 2 . . . 1 1 3 8 4 1 . 5 . 3 11 Storage 5 | 1 1 . 1 . . . . . . . . . . . 2 Processor 16 | . . . . . . 1 3 3 1 . . 1 . 1 6 Hackware . | . . . . . . . . . . . . . . . . Protection 13 | . 1 . . . 1 . 3 1 2 . . 1 1 2 1 Artifact . | . . . . . . . . . . . . . . . . Weapon 39 | 2 2 1 . . 1 2 2 5 5 7 . 2 . 3 7 Energy Gun 4 | . 1 . . . 1 . . . . . . . . . 2 Energy Cannon 1 | . 1 . . . . . . . . . . . . . . Ballistic Gun 21 | 2 . . . . . 1 2 3 2 6 . . . 1 4 Ballistic Cannon 9 | . . . . . . . . 2 1 1 . 2 . 2 1 Launcher 3 | . . 1 . . . 1 . . 1 . . . . . . Special Weapon . | . . . . . . . . . . . . . . . . Impact Weapon . | . . . . . . . . . . . . . . . . Slashing Weapon 1 | . . . . . . . . . 1 . . . . . . Piercing Weapon . | . . . . . . . . . . . . . . . . Special Melee Weapon . | . . . . . . . . . . . . . . . . Unidentified Prototypes 14 | . . . . . . 1 1 4 2 . . 4 . . 2 Parts Lost 52 | . 2 . . . 3 3 2 1 2 1 1 7 . 1 29 Power 6 | . 2 . . . 1 . 1 . . . . 1 . . 1 Propulsion 7 | . . . . . 1 . . . . . 1 1 . . 4 Utility 24 | . . . . . . 1 1 1 2 . . 3 . . 16 Weapon 15 | . . . . . 1 2 . . . 1 . 2 . 1 8 Highest Loss Streak 17 | . 1 . . . 3 3 2 1 2 1 1 7 . 1 17 Average Slot Usage (%) 79 | . 97 100 92 85 73 55 66 72 74 75 87 72 88 93 93 Engine 3 | . 11 14 14 14 . . 4 5 . . . . . . . Core 2 | . . . . . 8 6 2 . 3 . . 2 5 5 1 Reactor 1 | . . . . . . . . . 1 5 5 2 . . 2 Leg 16 | . 28 28 28 28 18 15 15 13 17 17 16 13 11 13 13 Device 13 | . 8 14 7 . 8 7 8 18 21 16 17 10 11 16 22 Storage 7 | . 14 14 14 14 9 9 7 6 5 5 5 5 5 5 3 Processor 11 | . . . . . . 6 11 13 11 11 11 11 17 13 21 Protection 5 | . 5 . . . 8 . 6 6 4 5 5 2 10 14 7 Energy Cannon 2 | . 9 14 14 14 9 . . . . . . . . . . Ballistic Gun 7 | . 11 . . . . 7 7 5 4 9 23 16 11 3 7 Ballistic Cannon 2 | . . . . . . . . . . . . 4 11 16 10 Launcher 1 | . . 6 14 14 9 1 . . . . . . . . . Naked Turns . | . . . . . . . . . . . . . . . . Heaviest Build 71 | 9 25 29 29 17 26 28 39 40 60 66 64 66 44 60 71 Greatest Support 90 | 20 20 20 20 20 25 25 35 40 55 55 60 90 60 80 78 Greatest Overweight (x) 6 | 1 1 1 1 . 1 2 1 1 1 1 1 2 . . 6 Average Overweight (x) . | . . 1 . . . . . . . 1 1 . . . . Largest Inventory Capacity 24 | 6 10 10 24 24 24 24 24 24 24 24 24 24 24 24 24 Average Capacity 21 | 5 7 10 16 24 24 24 24 24 24 24 24 24 24 24 16 Most Carried 24 | 1 10 10 17 19 22 24 24 24 24 24 22 24 19 24 24 Average Carried 20 | . 5 10 12 17 20 21 23 23 23 23 21 21 18 21 15 Final Capacity 24 | 6 10 10 24 24 24 24 24 24 24 24 24 24 24 24 10 Final Carried 24 | 1 10 10 17 19 22 24 24 24 24 22 21 17 19 24 9 Class Distribution -------------------- 34% | Hauler-Gunner 32% | Scavenger-Gunner 9% | Hauler-Mutant 9% | Mutant 5% | Hauler-Tank Dominant Class ---------------- Mutant | -10/Materials Mutant | -10/Mines Hauler-Mutant | -10/Exiles Hauler-Mutant | -9/Mines Hauler-Mutant | -8/Materials Hauler-Skirmisher | -8/Storage Hauler-Gunner | -7/Factory Hauler-Gunner | -6/Factory Scavenger-Gunner | -5/Factory Hauler-Gunner | -5/Upper Caves Scavenger-Gunner | -5/Upper Caves Hauler-Gunner | -5/Zhirov Hauler-Gunner | -4/Proximity Caves Scavenger-Gunner | -4/Factory Scavenger-Gunner | -3/Research Resources | -11 -10 -10 -10 -9 -8 -8 -7 -6 -5 -5 -5 -5 -4 -4 -3 ----------- Run | Scr Mat Min Exi Min Mat Sto Fac Fac Fac Upp Upp Zhi Pro Fac Res Matter Collected 9356 | 216 396 14 . 76 61 388 1682 1844 1340 201 498 155 257 657 1571 Remotely . | . . . . . . . . . . . . . . . . Salvage Created 9403 | 18 490 . . . 164 439 1919 2451 1303 158 525 215 142 710 869 Parts 471 | 3 34 . . . 7 29 124 107 54 9 18 3 5 32 46 Haulers Intercepted 7 | . 1 . . . . 1 2 2 1 . . . . . . Recyclers Shooed 8 | . 1 . . . . 2 2 2 . . . . . . 1 Parts Field Recycled . | . . . . . . . . . . . . . . . . Retrieved Matter . | . . . . . . . . . . . . . . . . Parts Self-Destructed 35 | . . . . . . . . . . 7 21 2 5 . . Prevented . | . . . . . . . . . . . . . . . . Kills | -11 -10 -10 -10 -9 -8 -8 -7 -6 -5 -5 -5 -5 -4 -4 -3 ------- Run | Scr Mat Min Exi Min Mat Sto Fac Fac Fac Upp Upp Zhi Pro Fac Res Combat Hostiles Destroyed 145 | . 11 . . . 2 11 29 27 14 3 11 . 5 14 18 Guns 104 | . 6 . . . . 4 29 27 14 2 11 . 3 3 5 Cannons 32 | . 5 . . . . . . . . 1 . . 2 11 13 AOE 9 | . . . . . 2 7 . . . . . . . . . Classes Destroyed 16 | 1 6 . . . . 1 5 2 . . . . . . 1 Worker 8 | . 1 . . . . . 2 5 . . . . . . . Builder 9 | . 1 . . . 1 1 4 2 . . . . . . . Tunneler 2 | 1 . . . . . . . . . . . . . 1 . Hauler 7 | . 1 . . . . 1 2 2 1 . . . . . . Recycler 9 | . . . . . . . 2 4 2 . . . . 1 . Operator 4 | . . . . . . . 2 1 . . . . . 1 . Watcher 14 | . 1 . . . . 1 4 5 1 . . . . . 2 Swarmer 24 | . 3 . . . . 4 5 5 . . 4 . 3 . . Grunt 64 | . 8 . . . 2 5 15 13 4 . 6 . 1 7 3 Brawler 3 | . . . . . . . . 2 . . . . . 1 . Duelist 3 | . . . . . . . . 2 1 . . . . . . Protector 2 | . . . . . . . 1 . 1 . . . . . . Sentry 21 | . . . . . . 2 3 1 3 1 1 . 1 4 5 Hunter 5 | . . . . . . . 2 2 1 . . . . . . Programmer 21 | . . . . . . . 3 2 4 2 . . . 2 8 Behemoth 2 | . . . . . . . . . . . . . . . 2 Thug 1 | . . . . . 1 . . . . . . . . . . Best Kill Streak 9 | 1 3 . . . 3 9 5 9 4 2 5 . 5 5 3 Combat Bots Only 8 | . 3 . . . 2 8 4 5 4 2 5 . 5 5 3 Max Kills in Single Turn 3 | 1 1 . . . 3 2 2 3 1 1 2 . 1 1 2 Gunslinging 1 | . . . . . . . . . . . 1 . . . 1 Exploded 2 | . . . . . 2 2 . . . . . . . . . Melee . | . . . . . . . . . . . . . . . . Uniques/NPCs Destroyed . | . . . . . . . . . . . . . . . . Combat | -11 -10 -10 -10 -9 -8 -8 -7 -6 -5 -5 -5 -5 -4 -4 -3 -------- Run | Scr Mat Min Exi Min Mat Sto Fac Fac Fac Upp Upp Zhi Pro Fac Res Damage Taken 13404 | . 648 . . . 386 292 1343 760 688 362 801 1477 324 979 5344 Core 2454 | . 104 . . . 45 144 280 79 38 39 74 256 18 68 1309 Absorbed by Shields . | . . . . . . . . . . . . . . . . Core Remaining (%) 74 | 100 . . . 58 . 65 60 90 . . . . 57 94 . Volleys Fired 456 | 1 57 . . . 6 21 100 89 50 6 25 2 10 32 57 Largest 4 | 2 2 . . . 3 2 1 1 1 4 4 4 4 4 4 Hottest 181 | 40 110 . . . 158 93 60 60 60 126 124 124 143 181 181 Shots Fired 878 | 2 114 . . . 11 22 99 89 50 20 98 8 40 121 204 Gun 590 | 2 84 . . . 3 12 99 89 50 16 98 8 20 25 84 Cannon 275 | . 30 . . . 3 2 . . . 4 . . 20 96 120 Launcher 13 | . . . . . 5 8 . . . . . . . . . Special . | . . . . . . . . . . . . . . . . Kinetic 803 | 2 62 . . . . 12 99 89 50 20 98 8 40 121 202 Thermal 60 | . 52 . . . 6 2 . . . . . . . . . Explosive 13 | . . . . . 5 8 . . . . . . . . . Electromagnetic 2 | . . . . . . . . . . . . . . . 2 Robot Hit Streak 18 | 1 10 . . . 5 6 18 18 17 8 12 6 12 10 18 Robot Miss Streak 8 | . 3 . . . 2 3 6 8 6 2 3 1 2 3 3 Penetration Max 1 | . . . . . . . . . . . 1 1 . 1 1 Secondary Targets 7 | . 2 . . . . . . . . . 3 . . . 2 Max Gunslinging Chain 2 | . 1 . . . . . . . . . 2 . . . 1 Shots Hit Robots 603 | 1 74 . . . 4 15 86 82 47 10 63 2 21 60 138 Core Hits 381 | 1 29 . . . 4 24 74 82 45 7 22 3 8 31 51 Critical Hits 36 | . . . . . . . . . . 1 4 . 2 9 20 Critical Kills 13 | . . . . . . . . . . . 2 . . 4 7 Critical Parts Destroyed 17 | . . . . . . . . . . 1 1 . 2 5 8 Melee Attacks . | . . . . . . . . . . . . . . . . Impact . | . . . . . . . . . . . . . . . . Slashing . | . . . . . . . . . . . . . . . . Piercing . | . . . . . . . . . . . . . . . . Sneak Attacks . | . . . . . . . . . . . . . . . . Combat Hostiles . | . . . . . . . . . . . . . . . . Follow-up Attacks . | . . . . . . . . . . . . . . . . Damage Inflicted 24026 | 10 796 . . . 195 1161 4851 4446 3577 417 1197 93 683 2193 4407 Guns 17644 | 10 486 . . . . 494 4851 4446 3577 316 1197 93 301 477 1396 Cannons 5537 | . 310 . . . 17 18 . . . 101 . . 382 1700 3009 Explosions 843 | . . . . . 178 649 . . . . . . . 16 . Melee . | . . . . . . . . . . . . . . . . Ramming 2 | . . . . . . . . . . . . . . . 2 Kinetic 22641 | 10 303 . . . . 494 4851 4446 3577 417 1197 93 683 2177 4393 Thermal 591 | . 493 . . . 64 18 . . . . . . . 16 . Explosive 780 | . . . . . 131 649 . . . . . . . . . Electromagnetic 12 | . . . . . . . . . . . . . . . 12 Impact . | . . . . . . . . . . . . . . . . Slashing . | . . . . . . . . . . . . . . . . Piercing . | . . . . . . . . . . . . . . . . Highest Corruption 11 | . . . . . . 3 4 . 6 9 9 9 9 2 11 Average Corruption 5 | . . . . . . 2 3 . 2 6 9 9 9 1 6 Corruption Purged . | . . . . . . . . . . . . . . . . Effects 164 | . . . . . . . 23 . 3 22 34 17 14 3 48 Message Errors 42 | . . . . . . . 8 . 1 7 7 8 4 . 7 Matter Fused 25 | . . . . . . . 5 . . 2 7 3 . . 8 Heat Flow Errors 17 | . . . . . . . 3 . . 4 2 2 1 . 5 Energy Discharges 14 | . . . . . . . 3 . . 4 3 2 . . 2 Parts Rejected 1 | . . . . . . . . . . 1 . . . . . Data Loss (minor) 15 | . . . . . . . 3 . 1 2 3 1 1 . 4 Data Loss (major) 4 | . . . . . . . . . . . 2 . 1 . 1 Misfires 4 | . . . . . . . . . . . 2 . 1 . 1 Misdirections 4 | . . . . . . . . . . . . . . . 4 Targeting Errors 25 | . . . . . . . . . 1 1 4 1 5 2 11 Weapon Failures 13 | . . . . . . . 1 . . 1 4 . 1 1 5 Overload Shots . | . . . . . . . . . . . . . . . . Overflow Damage 69 | . 8 . . . . 19 . . . 10 . . . 7 25 Projectiles 50 | . 8 . . . . . . . . 10 . . . 7 25 Explosions 19 | . . . . . . 19 . . . . . . . . . Melee . | . . . . . . . . . . . . . . . . Knockbacks 18 | . . . . . . . . . . . . . 1 9 8 Impact . | . . . . . . . . . . . . . . . . Kinetic 18 | . . . . . . . . . . . . . 1 9 8 Secondary . | . . . . . . . . . . . . . . . . Self-Inflicted Damage 99 | . . . . . 98 . . . . . . . . . 1 Shots 3 | . . . . . 3 . . . . . . . . . . Rammed 2 | . . . . . . . . . . . . . . . 2 Targets Rammed 2 | . . . . . . . . . . . . . . . 2 Kicked . | . . . . . . . . . . . . . . . . Crushed . | . . . . . . . . . . . . . . . . Highest Temperature 376 | . 170 . . . 51 200 356 376 138 209 226 266 122 320 198 Average Temperature 74 | . 64 . . . 25 82 83 82 43 112 75 120 46 95 38 Received Heat Transfer 2055 | . 204 . . . 72 81 330 192 87 . 201 . 48 234 606 Effects 3 | . . . . . . . 2 . . . . 1 . . . Shutdowns 1 | . . . . . . . 1 . . . . . . . . Energy Bleed 2 | . . . . . . . 1 . . . . 1 . . . Siege Activations . | . . . . . . . . . . . . . . . . Robots Corrupted . | . . . . . . . . . . . . . . . . Combat Hostiles . | . . . . . . . . . . . . . . . . Parts Fried . | . . . . . . . . . . . . . . . . Impact Corruptions . | . . . . . . . . . . . . . . . . Robots Melted . | . . . . . . . . . . . . . . . . Combat Hostiles . | . . . . . . . . . . . . . . . . Parts Melted 2 | . 1 . . . 1 . . . . . . . . . . Heat Transferred 1321 | . 1147 . . . 87 37 . . . . . . . 50 . Parts Sabotaged 4 | . . . . . . . . . . . . . . . 4 Parts Stolen . | . . . . . . . . . . . . . . . . Parts Stripped . | . . . . . . . . . . . . . . . . Power Chain Reactions . | . . . . . . . . . . . . . . . . Missiles Intercepted . | . . . . . . . . . . . . . . . . Alert | -11 -10 -10 -10 -9 -8 -8 -7 -6 -5 -5 -5 -5 -4 -4 -3 ------- Run | Scr Mat Min Exi Min Mat Sto Fac Fac Fac Upp Upp Zhi Pro Fac Res Peak Influence 863 | 5 256 60 . . 176 604 863 789 731 . . . . 609 570 Initial 381 | . 3 60 . . . 65 274 372 381 . . . . 63 319 Average 431 | . 122 60 . . 34 409 657 512 484 . . . . 379 446 Maximum Alert Level 3 | . 1 . . . . 2 3 3 3 . . . . 2 2 Low Security (%) 21 | 100 91 100 . 100 100 12 . . . . . . . 24 . Level 1 17 | . 8 . . . . 30 2 34 19 . . . . 20 34 Level 2 46 | . . . . . . 57 55 44 77 . . . . 55 65 Level 3 14 | . . . . . . . 42 21 2 . . . . . . Level 4 . | . . . . . . . . . . . . . . . . Level 5 . | . . . . . . . . . . . . . . . . High Security . | . . . . . . . . . . . . . . . . Max Security . | . . . . . . . . . . . . . . . . Squads Dispatched 38 | . 2 . . 1 1 3 15 4 3 . . . . 3 6 Investigation 6 | . 1 . . . . 2 2 . . . . . . 1 . Extermination 10 | . . . . . . . 2 2 2 . . . . 1 3 Reinforcement 9 | . 1 . . . 1 . 5 1 . . . . . . 1 Assault 7 | . . . . 1 . . 2 1 1 . . . . . 2 Garrison 6 | . . . . . . 1 4 . . . . . . 1 . Intercept . | . . . . . . . . . . . . . . . . Construction Impeded 3 | . . . . . . . 2 1 . . . . . . . Haulers Reinforced . | . . . . . . . . . . . . . . . . Stealth | -11 -10 -10 -10 -9 -8 -8 -7 -6 -5 -5 -5 -5 -4 -4 -3 --------- Run | Scr Mat Min Exi Min Mat Sto Fac Fac Fac Upp Upp Zhi Pro Fac Res Distress Signals 8 | . 1 . . . . . 2 1 . . . . . 2 2 Communications Jammed 8 | . . . . . . . . 5 . . . . . . 3 Distress Signals 8 | . . . . . . . . 5 . . . . . . 3 Times Spotted 229 | . 25 . . . 9 16 49 35 18 3 12 . 5 21 36 Peak Tracking Total 12 | . 7 . . . 5 9 5 5 5 2 5 . 4 7 12 Tactical Retreats 9 | . . . . . 1 2 3 . . . . . . 2 1 Traps | -11 -10 -10 -10 -9 -8 -8 -7 -6 -5 -5 -5 -5 -4 -4 -3 ------- Run | Scr Mat Min Exi Min Mat Sto Fac Fac Fac Upp Upp Zhi Pro Fac Res Traps Triggered 14 | . 1 . . . . 6 5 1 . . . . . . 1 Indirectly . | . . . . . . . . . . . . . . . . Trap Hack Attempts . | . . . . . . . . . . . . . . . . Triggered . | . . . . . . . . . . . . . . . . Disarmed . | . . . . . . . . . . . . . . . . Reprogrammed . | . . . . . . . . . . . . . . . . Reused . | . . . . . . . . . . . . . . . . Traps Extracted . | . . . . . . . . . . . . . . . . Installed . | . . . . . . . . . . . . . . . . Triggered . | . . . . . . . . . . . . . . . . Machines | -11 -10 -10 -10 -9 -8 -8 -7 -6 -5 -5 -5 -5 -4 -4 -3 ---------- Run | Scr Mat Min Exi Min Mat Sto Fac Fac Fac Upp Upp Zhi Pro Fac Res Machines Disabled 24 | . . . . . 3 6 5 2 1 . . 1 . 4 2 Max in Single Turn 2 | . . . . . 2 1 1 1 1 . . 1 . 2 1 Garrison Access 4 | . . . . . . 1 . 2 . . . . . 1 . Machines Sabotaged . | . . . . . . . . . . . . . . . . Garrisons Compromised . | . . . . . . . . . . . . . . . . Overloaded Fab Kills . | . . . . . . . . . . . . . . . . Fab Network Shutdowns . | . . . . . . . . . . . . . . . . Hacking | -11 -10 -10 -10 -9 -8 -8 -7 -6 -5 -5 -5 -5 -4 -4 -3 --------- Run | Scr Mat Min Exi Min Mat Sto Fac Fac Fac Upp Upp Zhi Pro Fac Res Machines Accessed 40 | . 4 . 1 . . 3 11 7 4 . . 4 . 2 4 Terminals 23 | . 4 . . . . 2 5 5 3 . . . . . 4 Fabricators 7 | . . . . . . . 5 . 1 . . . . 1 . Repair Stations 1 | . . . . . . . 1 . . . . . . . . Recycling Units . | . . . . . . . . . . . . . . . . Scanalyzers . | . . . . . . . . . . . . . . . . Garrison Access 4 | . . . . . . 1 . 2 . . . . . 1 . Total Hacks 99 | . 13 . 1 . . 10 32 10 5 . . 17 . 3 8 Successful 44 | . 6 . 1 . . 3 10 3 2 . . 17 . 1 1 Failed 55 | . 7 . . . . 7 22 7 3 . . . . 2 7 Catastrophic 13 | . . . . . . . 7 2 2 . . . . . 2 Database Lockouts . | . . . . . . . . . . . . . . . . Manual 28 | . 6 . 1 . . . 12 4 3 . . . . . 2 Terminals 54 | . 13 . . . . 8 16 5 4 . . . . . 8 Fabricators 17 | . . . . . . . 14 . 1 . . . . 2 . Repair Stations 2 | . . . . . . . 2 . . . . . . . . Recycling Units . | . . . . . . . . . . . . . . . . Scanalyzers . | . . . . . . . . . . . . . . . . Garrison Access 8 | . . . . . . 2 . 5 . . . . . 1 . Terminal Hacks 33 | . 6 . 1 . . 2 3 1 2 . . 17 . . 1 Record 6 | . . . . . . . . . . . . 5 . . 1 Part Schematic 6 | . . . . . . . 1 1 . . . 4 . . . Robot Analysis 8 | . 4 . . . . . . . . . . 4 . . . Prototype ID Bank 5 | . 1 . . . . . . . . . . 4 . . . Open Door 2 | . . . . . . 2 . . . . . . . . . Branch Access Points 1 | . . . . . . . . . 1 . . . . . . Registered Prototypes 1 | . 1 . . . . . . . . . . . . . . Zone Layout 3 | . . . . . . . 2 . 1 . . . . . . EX-Prototype ID Bank 1 | . . . 1 . . . . . . . . . . . . Fabricator Hacks 6 | . . . . . . . 6 . . . . . . . . Load Schematic 1 | . . . . . . . 1 . . . . . . . . Build 5 | . . . . . . . 5 . . . . . . . . Repair Station Hacks 1 | . . . . . . . 1 . . . . . . . . Scan Component 1 | . . . . . . . 1 . . . . . . . . Recycling Unit Hacks . | . . . . . . . . . . . . . . . . Scanalyzer . | . . . . . . . . . . . . . . . . Garrison Access Hacks 4 | . . . . . . 1 . 2 . . . . . 1 . Seal Access 4 | . . . . . . 1 . 2 . . . . . 1 . Unauthorized Hacks . | . . . . . . . . . . . . . . . . Terminals . | . . . . . . . . . . . . . . . . Fabricators . | . . . . . . . . . . . . . . . . Repair Stations . | . . . . . . . . . . . . . . . . Recycling Units . | . . . . . . . . . . . . . . . . Scanalyzers . | . . . . . . . . . . . . . . . . Garrison Access . | . . . . . . . . . . . . . . . . Data Cores Recovered 3 | . . . . . . . 2 1 . . . . . . . Used 2 | . . . . . . . 1 1 . . . . . . . Hacking Detections 31 | . 3 . . . . 3 11 6 3 . . . . 1 4 Full Trace Events 3 | . . . . . . 1 1 . . . . . . 1 . Feedback Events 1 | . . . . . . . 1 . . . . . . . . Corruption 1 | . . . . . . . 1 . . . . . . . . Feedback Blocked . | . . . . . . . . . . . . . . . . Robot Schematics Acquired . | . . . . . . . . . . . . . . . . Robots Built 6 | . . . . . . . 6 . . . . . . . . Matter 438 | . . . . . . . 438 . . . . . . . . Time 166 | . . . . . . . 166 . . . . . . . . Total Robot Build Rating 18 | . . . . . . . 18 . . . . . . . . Part Schematics Acquired 6 | . . . . . . . 1 1 . . . 4 . . . Parts Built . | . . . . . . . . . . . . . . . . Matter . | . . . . . . . . . . . . . . . . Time . | . . . . . . . . . . . . . . . . Total Part Build Rating . | . . . . . . . . . . . . . . . . Parts Repaired . | . . . . . . . . . . . . . . . . Time . | . . . . . . . . . . . . . . . . Parts Recycled . | . . . . . . . . . . . . . . . . Recycled Matter . | . . . . . . . . . . . . . . . . Retrieved Matter . | . . . . . . . . . . . . . . . . Retrieved Components . | . . . . . . . . . . . . . . . . Parts Scanalyzed . | . . . . . . . . . . . . . . . . Part Schematics Acquired . | . . . . . . . . . . . . . . . . Parts Damaged . | . . . . . . . . . . . . . . . . Bothacking | -11 -10 -10 -10 -9 -8 -8 -7 -6 -5 -5 -5 -5 -4 -4 -3 ------------ Run | Scr Mat Min Exi Min Mat Sto Fac Fac Fac Upp Upp Zhi Pro Fac Res Used RIF Installer . | . . . . . . . . . . . . . . . . Robots Hacked . | . . . . . . . . . . . . . . . . Non-combat . | . . . . . . . . . . . . . . . . Combat . | . . . . . . . . . . . . . . . . Robot Hacks Applied . | . . . . . . . . . . . . . . . . Relay Couplers Released 4 | . . . . . . . 4 . . . . . . . . Programmers 4 | . . . . . . . 4 . . . . . . . . Robots Rewired . | . . . . . . . . . . . . . . . . Allies Hacked . | . . . . . . . . . . . . . . . . Hacks Repelled . | . . . . . . . . . . . . . . . . Allies | -11 -10 -10 -10 -9 -8 -8 -7 -6 -5 -5 -5 -5 -4 -4 -3 -------- Run | Scr Mat Min Exi Min Mat Sto Fac Fac Fac Upp Upp Zhi Pro Fac Res Total Allies 17 | . . . . 1 . 10 6 . . . . . . . . Largest Group 10 | . . . . 1 1 10 9 . . . . . . . . Highest-Rated Group 173 | . . . . 31 31 173 157 . . . . . . . . Highest-Rated Ally 31 | . . . . 31 31 29 29 . . . . . . . . Total Orders 5 | . . . . . . . 2 . . . . . . . 3 STAY 2 | . . . . . . . 2 . . . . . . . . EXPLORE 3 | . . . . . . . . . . . . . . . 3 Ally Attacks 62 | . . . . . 7 9 46 . . . . . . . . Total Damage 761 | . . . . . 64 145 552 . . . . . . . . Kills 10 | . . . . . . 1 9 . . . . . . . . Allies Corrupted 2 | . . . . . . . 2 . . . . . . . . Allies Melted . | . . . . . . . . . . . . . . . . Intel | -11 -10 -10 -10 -9 -8 -8 -7 -6 -5 -5 -5 -5 -4 -4 -3 ------- Run | Scr Mat Min Exi Min Mat Sto Fac Fac Fac Upp Upp Zhi Pro Fac Res Robot Analysis Total 8 | . 4 . . . . . . . . . . 4 . . . Derelict Logs Recovered 3 | . . . . 1 . . . . . 1 1 . . . . Drone Launches 6 | . . . . . . . . . . . . . . 3 3 Drone Recoveries 5 | . . . . . . . . . . . . . . 2 3 Exploration | -11 -10 -10 -10 -9 -8 -8 -7 -6 -5 -5 -5 -5 -4 -4 -3 ------------- Run | Scr Mat Min Exi Min Mat Sto Fac Fac Fac Upp Upp Zhi Pro Fac Res Turns Passed 10859 | 59 606 200 326 523 267 381 2120 1445 840 630 701 497 295 600 1369 Spaces Moved 6657 | 44 318 132 233 435 112 203 1179 934 578 389 405 362 214 332 787 Core 17 | 13 . . . . . . . . . . . . . . 4 Treads . | . . . . . . . . . . . . . . . . Legs 6640 | 31 318 132 233 435 112 203 1179 934 578 389 405 362 214 332 783 Wheels . | . . . . . . . . . . . . . . . . Hover . | . . . . . . . . . . . . . . . . Flight . | . . . . . . . . . . . . . . . . Fastest Speed 50 | 50 120 150 120 120 120 120 120 125 123 153 153 120 120 120 116 Average Speed 136 | 106 130 150 134 120 140 148 151 136 124 153 153 128 120 120 124 Slowest Speed 350 | 120 150 150 150 120 150 180 155 155 153 153 155 180 120 120 350 Overloaded Moves . | . . . . . . . . . . . . . . . . Propulsion Burnouts . | . . . . . . . . . . . . . . . . Robots Hopped . | . . . . . . . . . . . . . . . . Cave-ins Triggered 1 | . . . . . . . 1 . . . . . . . . Exploration Rate (%) 43 | 4 46 23 61 98 14 47 37 30 17 57 75 94 44 11 30 Regions Visited 15 Branch Regions 8 Pre-discovered Areas 3 | . . . . . . . . . . . . 3 . . . Known Exits Taken 9 | . . . . . 1 . 1 1 1 1 1 1 1 1 . Unknown Exits Taken 6 | 1 1 1 1 1 . 1 . . . . . . . . . Scrap Searched 7 | . . 1 . 2 . . . . . 1 1 . 2 . . Spaces Dug 56 | . . . . . 19 . 19 . 7 . . . . 6 5 Terrain Destroyed 410 | . . . . . 85 68 34 14 47 2 6 1 10 107 36 Melee . | . . . . . . . . . . . . . . . . Projectile 220 | . . . . . . 7 34 14 47 2 6 1 10 63 36 AOE 190 | . . . . . 85 61 . . . . . . . 44 . Terrain Rammed . | . . . . . . . . . . . . . . . . Walls Destroyed . | . . . . . . . . . . . . . . . . Machines Disabled . | . . . . . . . . . . . . . . . . Actions | -11 -10 -10 -10 -9 -8 -8 -7 -6 -5 -5 -5 -5 -4 -4 -3 --------- Run | Scr Mat Min Exi Min Mat Sto Fac Fac Fac Upp Upp Zhi Pro Fac Res Total 8132 | 51 405 135 245 436 212 279 1525 1132 714 412 437 388 231 474 1056 Wait 565 | . . . . . 84 3 195 19 42 8 7 . 4 74 129 Move 6641 | 43 317 131 232 434 111 202 1177 933 577 388 404 361 213 331 787 Hop . | . . . . . . . . . . . . . . . . Pick Up 123 | 1 11 . 10 2 4 16 11 20 11 2 . 3 2 9 21 Fast Attach 77 | 6 4 1 1 . 1 6 8 12 7 1 . 8 1 6 15 Attach 42 | . 2 . . . 3 4 4 2 4 4 1 7 . 2 9 Detach 4 | . . . . . . 1 . . 2 . . . . . 1 Swap 58 | . 6 1 . . 2 2 8 13 4 3 . . 1 7 11 Drop 151 | . 8 2 2 . 1 12 21 44 17 . . 7 . 13 24 Fire 456 | 1 57 . . . 6 21 100 89 50 6 25 2 10 32 57 Melee . | . . . . . . . . . . . . . . . . Ram 2 | . . . . . . . . . . . . . . . 2 Kick . | . . . . . . . . . . . . . . . . Crush . | . . . . . . . . . . . . . . . . Escape Stasis 11 | . . . . . . 10 1 . . . . . . . . Rewire 2 | . . . . . . 2 . . . . . . . . . Trap . | . . . . . . . . . . . . . . . . Miscellaneous . | . . . . . . . . . . . . . . . . Route ------- -11/Scrapyard -10/Materials (discovered 2 exits: [*Mat] / [*Min]) -10/Mines -10/Exiles -9/Mines (discovered 2 exits: [*Mat x2]) -8/Materials -8/Storage -7/Factory (discovered 2 exits: *Fac x2) -6/Factory -5/Factory (discovered 4 exits: *Fac x2 / *Upp x2) -5/Upper Caves -5/Upper Caves (discovered 2 exits: *Fac / *Zhi) -5/Zhirov -4/Proximity Caves -4/Factory -3/Research (discovered 1 exit: [*Res]) History --------- Turn | Location | Event 8 | -11/Scrapyard | Discovered new exit (range 16) 60 | -11/Scrapyard | Entered Materials 313 | -10/Materials | Discovered new exit (range 3) 355 | -10/Materials | Build established: Mutant 642 | -10/Materials | Discovered new exit (range 15) 666 | -10/Materials | Entered Mines 763 | -10/Mines | Received a Rocket Launcher from a helpful Derelict 821 | -10/Mines | Deemed a non-threat by the Exiles lab entrance 821 | -10/Mines | Discovered new exit (range 5) 866 | -10/Mines | Entered Exiles 907 | -10/Exiles | Met 8R-AWN 929 | -10/Exiles | Met EX-HEX 968 | -10/Exiles | Met EX-BIN 988 | -10/Exiles | Aligned with FarCom system 989 | -10/Exiles | Given EX-Vault access code 1033 | -10/Exiles | Opened EX-Vault 1044 | -10/Exiles | Found Lightpack 2.0 1054 | -10/Exiles | Found XL Autogun Array 1078 | -10/Exiles | Found Supersonic Drone Bay 1103 | -10/Exiles | Warned to stay clear of 0b10 Research branches 1137 | -10/Exiles | Met EX-DEC 1177 | -10/Exiles | Discovered new exit (range 14) 1192 | -10/Exiles | Stole three prototypes: Lightpack 2.0, XL Autogun Array, Supersonic Drone Bay 1192 | -10/Exiles | Entered Mines 1331 | -9/Mines | Build established: Hauler-Mutant 1543 | -9/Mines | Discovered new exit (range 8) 1697 | -9/Mines | Discovered new exit (range 11) 1698 | -9/Mines | Met a Derelict testing a Signal Generator 1714 | -9/Mines | Found Signal Generator 1715 | -9/Mines | Entered Materials 1715 | -8/Materials | Accompanied by 1 ally 1715 | -8/Materials | Evolved 4 slots: Utility x2, Weapon x2 1716 | -8/Materials | Identified exit to Storage 1982 | -8/Materials | Entered Storage 2012 | -8/Storage | Lost 3 parts (1p1n1w) 2021 | -8/Storage | Garrison activated, responded to threat 2075 | -8/Storage | Destroyed 8 combat bots 2083 | -8/Storage | Lost 3 parts (1u2w) 2320 | -8/Storage | Discovered new exit (range 15) 2337 | -8/Storage | Build established: Hauler-Skirmisher 2342 | -8/Storage | Assisted by bots powering up and referring to "LRC-V3" 2363 | -8/Storage | Entered Factory 2363 | -7/Factory | Accompanied by 10 allies 2363 | -7/Factory | Evolved 2 slots: Utility x2 2365 | -7/Factory | FarCom data flow suspended 2397 | -7/Factory | Garrison activated, responded to threat 2684 | -7/Factory | Garrison activated, responded to threat 2841 | -7/Factory | Fabricated B-48 Gladiator (x3) 3006 | -7/Factory | Crushed by falling debris 3164 | -7/Factory | Build established: Hauler-Gunner 3265 | -7/Factory | Fabricated B-36 Bruiser (x3) 3389 | -7/Factory | Discovered new exit (range 5) 3397 | -7/Factory | Identified exit to Factory 3563 | -7/Factory | First assault squad dispatched 4266 | -7/Factory | Build established: Hauler-Tank 4331 | -7/Factory | Discovered exit to Factory (range 15) 4483 | -7/Factory | Entered another Factory area 4483 | -6/Factory | Evolved 2 slots: Utility x2 4859 | -6/Factory | Build established: Hauler-Gunner 5029 | -6/Factory | Found Prototype Processor 5029 | -6/Factory | Identified Exp. Signal Interpreter 5185 | -6/Factory | Spotted B-75 Beast 5821 | -6/Factory | Discovered new exit (range 16) 5883 | -6/Factory | First assault squad dispatched 5897 | -6/Factory | Identified exit to Factory 5928 | -6/Factory | Entered another Factory area 5928 | -5/Factory | Evolved 2 slots: Propulsion x1, Utility x1 6049 | -5/Factory | Found Exp. Signal Interpreter 6087 | -5/Factory | Found Prototype Launcher 6223 | -5/Factory | Build established: Scavenger-Gunner 6228 | -5/Factory | First assault squad dispatched 6258 | -5/Factory | Discovered new exit (range 11) 6277 | -5/Factory | Identified exit to Factory 6427 | -5/Factory | Identified exit to Upper Caves 6613 | -5/Factory | Discovered exit to Factory (range 15) 6768 | -5/Factory | Entered Upper Caves 6839 | -5/Upper Caves | Learned location of 1 exit from Factory 7000 | -5/Upper Caves | Build established: Hauler-Gunner 7292 | -5/Upper Caves | Attracted the attention of an 0b10 checkpoint 7380 | -5/Upper Caves | Discovered new exit (range 13) 7397 | -5/Upper Caves | Identified exit to Upper Caves 7398 | -5/Upper Caves | Entered another Upper Caves area 7432 | -5/Upper Caves | Discovered exit to Factory (range 8) 7575 | -5/Upper Caves | Encountered a Warlord checkpoint 7823 | -5/Upper Caves | Build established: Scavenger-Gunner 7916 | -5/Upper Caves | Attracted the attention of an 0b10 checkpoint 7939 | -5/Upper Caves | Learned Factory trap positions 8000 | -5/Upper Caves | Discovered new exit (range 15) 8098 | -5/Upper Caves | Identified exit to Zhirov 8099 | -5/Upper Caves | Entered Zhirov 8099 | -5/Zhirov | Discovered new exit (range 3) 8127 | -5/Zhirov | Met Zhirov 8155 | -5/Zhirov | Learned location of Command (-1) 8155 | -5/Zhirov | Learned location of Testing (-3) 8155 | -5/Zhirov | Learned location of Quarantine (-2) 8170 | -5/Zhirov | Zhirov requested help retrieving the SGEMP Prototype 8193 | -5/Zhirov | Found Alien Artifact 8193 | -5/Zhirov | Identified Integrated Reactor 8193 | -5/Zhirov | Installed Integrated Reactor, increased core energy generation (+10) 8225 | -5/Zhirov | Found Alien Artifact 8282 | -5/Zhirov | Cloak Generator disabled 8282 | -5/Zhirov | Attacked by Zhirov 8310 | -5/Zhirov | Zhirov detonated his lab 8341 | -5/Zhirov | Lost 7 parts (1p1n3u2w) 8595 | -5/Zhirov | Identified exit to Proximity Caves 8596 | -5/Zhirov | Entered Proximity Caves 8687 | -4/Proximity Caves | Build established: Hauler-Gunner 8791 | -4/Proximity Caves | Attracted the attention of an 0b10 checkpoint 8869 | -4/Proximity Caves | Discovered exit to Factory (range 3) 8891 | -4/Proximity Caves | Entered Factory 8891 | -4/Factory | Evolved 2 slots: Utility x2 8892 | -4/Factory | Identified exit to Research 8893 | -4/Factory | Loaded intel: 107 trap records 9036 | -4/Factory | Garrison activated, responded to threat 9265 | -4/Factory | Spotted B-86 Titan 9491 | -4/Factory | Entered Research 9491 | -3/Research | Evolved 2 slots: Utility x2 9647 | -3/Research | Build established: Scavenger-Gunner 10012 | -3/Research | Spotted B-86 Titan 10022 | -3/Research | Destroyed B-86 Titan 10131 | -3/Research | Spotted B-86 Titan 10165 | -3/Research | Destroyed B-86 Titan 10185 | -3/Research | Lost 7 parts (4u3w) 10298 | -3/Research | Discovered new exit (range 48) 10521 | -3/Research | Lost 3 parts (2u1w) 10574 | -3/Research | System corruption reached 10% 10741 | -3/Research | First assault squad dispatched 10795 | -3/Research | Found Enh. Force Lance 10797 | -3/Research | Found Enh. Force Lance 10801 | -3/Research | Found Enh. Force Lance 10802 | -3/Research | Spotted B-86 Titan 10803 | -3/Research | Found Enh. Force Lance 10806 | -3/Research | Found Enh. Force Lance 10808 | -3/Research | Found Enh. Force Lance 10848 | -3/Research | Core integrity fell below 50% 10855 | -3/Research | Core integrity fell below 20% 10860 | -3/Research | Destroyed by G-73 Enforcer with Phase Gun Last Messages --------------- 10843_ Flexi-carbon Leg destroyed. 10843_ Adv. Heat Sink destroyed. 10845_ Adv. Targeting Computer destroyed. 10846_ Adv. Heat Sink destroyed. 10847_ Penetrated by Slug. 10847_ Adv. Heat Sink destroyed. 10848_ Exp. Signal Interpreter destroyed. 10850_ Penetrated by Slug. 10850_ Adv. Heat Sink blown off. 10850_ Adv. Target Analyzer blown off. 10850_ Adv. Core Analyzer blown off. 10850_ Adv. Targeting Computer blown off. 10850_ E-15 Imp destroyed. 10853_ U-05 Engineer builds a Wall. 10853_ Penetrated by Slug. 10853_ Slug penetrates Wall. 10856_ Slammed into Y-72 Warden. 10860_ Slug penetrates Wall. 10860_ Slug penetrates G-73 Enforcer. 10860_ Slug penetrates Wall. Map ----- +----------------------------------------------------+ | | | | | | | | | | | | | | | | | | | | | | | | | | | | | | | | | | | | | | | | | ??????????????????????????????????????###########? | | ??????????????????????????????????????# #? | | ??????????????#######??????#??????????# #? | | ??????????????# = ##### #??###?????# #? | | ??????????????# # #;#;########## #? | | ??????????????# ! +